Cogmind - Beta 16 @@@ ROGUE MODE // 2025.11.17 @ 21:39:39 Player: ClassActJerk Result: Destroyed by Y-54 Guardian with Flak Gun Performance ------------- Evolutions (4) 2000 Regions Visited (7) 1400 Robots Destroyed (0) 0 Value Destroyed (0) 0 Prototype IDs (1) 20 Alien Tech Used (0) 0 Bonus (1502) 1502 TOTAL SCORE: 4922 Bonus ------- Pacifist 862 Follower Combat Kills 40 Met Imprinter 300 Was Imprinted 300 Cogmind --------- Core Integrity 0/850 Matter 277/300 Energy 98/100 System Corruption 0% Temperature Cool (24) Movement Core (50) Location -6/Extension Parts ------- > --- POWER (2) -------- (None) > --- PROPULSION (4) --- (None) > --- UTILITY (6) ------ 0b10 Decoder Chip [Scout] > --- WEAPON (3) ------- (None) > --- INVENTORY (5) ---- Airjet Airjet Hardened Light Armor Plating Improved Light Armor Plating Force Field Peak State ------------ > --- POWER ------------ (None) > --- PROPULSION ------- Airjet Airjet Airjet Airjet > --- UTILITY ---------- 0b10 Decoder Chip [Scout] Jamming Amplifier Cloaking Device Hacking Drone Bay > --- WEAPON ----------- (None) > --- INVENTORY -------- Airjet Airjet Hardened Light Armor Plating Improved Light Armor Plating [Rating: 37] Favorites ----------- Power None Propulsion Airjet Hover Unit Airjet Utility 0b10 Decoder Chip [Scout] Device Hacking Drone Bay Processor 0b10 Decoder Chip [Scout] Weapon None Build | -11 -10 -9 -9 -7 -6 -6 -6 ------- Run | Yrd Mat Mat Min Zio Pro Fac Ext Slots Evolved 8 | . . 2 . . . 6 . Power 1 | . . . . . . 1 . Propulsion 2 | . . 2 . . . . . Utility 4 | . . . . . . 4 . Weapon 1 | . . . . . . 1 . Parts Attached 8 | . . . . 2 . 6 . Power . | . . . . . . . . Engine . | . . . . . . . . Core . | . . . . . . . . Reactor . | . . . . . . . . Propulsion 4 | . . . . . . 4 . Treads . | . . . . . . . . Leg . | . . . . . . . . Wheel . | . . . . . . . . Hover 4 | . . . . . . 4 . Flight . | . . . . . . . . Utility 4 | . . . . 2 . 2 . Device 2 | . . . . 1 . 1 . Storage . | . . . . . . . . Processor 2 | . . . . 1 . 1 . Hackware . | . . . . . . . . Protection . | . . . . . . . . Artifact . | . . . . . . . . Weapon . | . . . . . . . . Energy Gun . | . . . . . . . . Energy Cannon . | . . . . . . . . Ballistic Gun . | . . . . . . . . Ballistic Cannon . | . . . . . . . . Launcher . | . . . . . . . . Special Weapon . | . . . . . . . . Impact Weapon . | . . . . . . . . Slashing Weapon . | . . . . . . . . Piercing Weapon . | . . . . . . . . Special Melee Weapon . | . . . . . . . . Unidentified Prototypes 1 | . . . . 1 . . . Parts Lost 7 | . . . . . . . 7 Power . | . . . . . . . . Propulsion 4 | . . . . . . . 4 Utility 3 | . . . . . . . 3 Weapon . | . . . . . . . . Highest Loss Streak 7 | . . . . . . . 7 To Critical Strikes . | . . . . . . . . Average Backups 1 | . . . . . 1 3 4 Power . | . . . . . . . . Propulsion . | . . . . . . 1 2 Utility 1 | . . . . . 1 2 2 Weapon . | . . . . . . . . Tool/Special . | . . . . . . . . Unused Backups 6 | . . . . . 1 . 5 Power . | . . . . . . . . Propulsion 2 | . . . . . . . 2 Utility 3 | . . . . . . . 3 Weapon 1 | . . . . . 1 . . Tool/Special . | . . . . . . . . Average Slot Usage (%) 27 | . . . . 12 22 42 52 Hover 9 | . . . . . . 18 25 Device 7 | . . . . 3 11 10 12 Processor 9 | . . . . 8 11 12 13 Peak Build Rating 37 | . . . . 14 15 37 37 Average Rating 18 | . . . . 6 14 31 36 On Entrance 8 | . . . . . 14 15 37 Avg Prop Armor Cover (%) 29 | . . . . . . . 29 Naked Turns 287 | . 58 15 123 91 . . . Heaviest Build 2 | . . . . 1 1 2 2 Greatest Support 32 | 3 3 3 3 3 3 32 32 Greatest Overweight (x) . | . . . . . . . . Average Overweight (x) . | . . . . . . . . Largest Inventory Capacity 5 | 5 5 5 5 5 5 5 5 Average Capacity 5 | 5 5 5 5 5 5 5 5 Most Carried 5 | . . . . 1 3 5 5 Average Carried 1 | . . . . . 1 3 4 Final Capacity 5 | 5 5 5 5 5 5 5 5 Final Carried 5 | . . . . . 3 4 5 Class Distribution -------------------- 100% | Mutant Dominant Class ---------------- Mutant | -10/Materials Mutant | -9/Materials Mutant | -9/Mines Mutant | -7/Zion Mutant | -6/Proximity Caves Mutant | -6/Factory Mutant | -6/Extension Resources | -11 -10 -9 -9 -7 -6 -6 -6 ----------- Run | Yrd Mat Mat Min Zio Pro Fac Ext Matter Collected 222 | 200 . . . 10 10 . 2 Remotely . | . . . . . . . . Salvage Created . | . . . . . . . . Parts . | . . . . . . . . Haulers Intercepted . | . . . . . . . . Recyclers Shooed . | . . . . . . . . Parts Field Recycled . | . . . . . . . . Retrieved Matter . | . . . . . . . . Parts Self-Destructed . | . . . . . . . . Prevented 2 | . . . . . 2 . . Parts Restored . | . . . . . . . . Kills | -11 -10 -9 -9 -7 -6 -6 -6 ------- Run | Yrd Mat Mat Min Zio Pro Fac Ext Combat Hostiles Destroyed . | . . . . . . . . Classes Destroyed . | . . . . . . . . Best Kill Streak . | . . . . . . . . Combat Bots Only . | . . . . . . . . Max Kills in Single Turn . | . . . . . . . . Gunslinging . | . . . . . . . . Exploded . | . . . . . . . . Melee . | . . . . . . . . Uniques/NPCs Destroyed . | . . . . . . . . Combat | -11 -10 -9 -9 -7 -6 -6 -6 -------- Run | Yrd Mat Mat Min Zio Pro Fac Ext Hostile Shots Fired 176 | . . . 5 . 17 . 154 Missed 82 | . . . 1 . 8 . 73 Hits 94 | . . . 4 . 9 . 81 Melee 1 | . . . 1 . . . . Projectile 93 | . . . 3 . 9 . 81 Critical Strikes 4 | . . . 1 . 1 . 2 Damage Taken 1408 | . . . 75 . 165 . 1168 Core 1049 | . . . 75 . 119 . 855 Absorbed by Shields . | . . . . . . . . Core Remaining (%) 83 | 100 100 . . . 51 . . Volleys Fired . | . . . . . . . . Largest . | . . . . . . . . Hottest . | . . . . . . . . Shots Fired . | . . . . . . . . Gun . | . . . . . . . . Cannon . | . . . . . . . . Launcher . | . . . . . . . . Special . | . . . . . . . . Kinetic . | . . . . . . . . Thermal . | . . . . . . . . Explosive . | . . . . . . . . Electromagnetic . | . . . . . . . . Robot Hit Streak . | . . . . . . . . Robot Miss Streak . | . . . . . . . . Penetration Max . | . . . . . . . . Secondary Targets . | . . . . . . . . Shots Hit Robots . | . . . . . . . . Core Hits . | . . . . . . . . Critical Kills . | . . . . . . . . Critical Parts Destroyed . | . . . . . . . . Critical Strikes . | . . . . . . . . Melee Attacks . | . . . . . . . . Impact . | . . . . . . . . Slashing . | . . . . . . . . Piercing . | . . . . . . . . Sneak Attacks . | . . . . . . . . Combat Hostiles . | . . . . . . . . Follow-up Attacks . | . . . . . . . . Damage Inflicted . | . . . . . . . . Guns . | . . . . . . . . Cannons . | . . . . . . . . Explosions . | . . . . . . . . Melee . | . . . . . . . . Ramming . | . . . . . . . . Kinetic . | . . . . . . . . Thermal . | . . . . . . . . Explosive . | . . . . . . . . Electromagnetic . | . . . . . . . . Impact . | . . . . . . . . Slashing . | . . . . . . . . Piercing . | . . . . . . . . Highest Corruption . | . . . . . . . . Average Corruption . | . . . . . . . . Corruption Purged . | . . . . . . . . Corruption Blocked . | . . . . . . . . Overload Shots . | . . . . . . . . Overflow Damage . | . . . . . . . . Projectiles . | . . . . . . . . Explosions . | . . . . . . . . Melee . | . . . . . . . . Knockbacks . | . . . . . . . . Impact . | . . . . . . . . Kinetic . | . . . . . . . . Secondary . | . . . . . . . . Self-Inflicted Damage . | . . . . . . . . Shots . | . . . . . . . . Rammed . | . . . . . . . . Targets Rammed . | . . . . . . . . Kicked . | . . . . . . . . Crushed . | . . . . . . . . Highest Temperature 9 | . . . . . 9 . . Average Temperature 9 | . . . . . 9 . . Received Heat Transfer 232 | . . . 33 . 49 . 150 Siege Activations . | . . . . . . . . Martial Activations . | . . . . . . . . Shielding Activations . | . . . . . . . . Robots Disrupted . | . . . . . . . . Combat Hostiles . | . . . . . . . . Robots Corrupted . | . . . . . . . . Combat Hostiles . | . . . . . . . . Parts Fried . | . . . . . . . . Impact Corruptions . | . . . . . . . . Robots Melted . | . . . . . . . . Combat Hostiles . | . . . . . . . . Parts Melted . | . . . . . . . . Heat Transferred . | . . . . . . . . Parts Sabotaged . | . . . . . . . . Parts Stolen . | . . . . . . . . Parts Stripped . | . . . . . . . . Power Chain Reactions . | . . . . . . . . Alert | -11 -10 -9 -9 -7 -6 -6 -6 ------- Run | Yrd Mat Mat Min Zio Pro Fac Ext Maximum Alert Level . | . . . . . . . . Low Security (%) 100 | 100 100 100 100 . . 100 100 Level 1 . | . . . . . . . . Level 2 . | . . . . . . . . Level 3 . | . . . . . . . . Level 4 . | . . . . . . . . Level 5 . | . . . . . . . . High Security . | . . . . . . . . Max Security . | . . . . . . . . Peak Influence 45 | . 15 5 30 . . 45 40 Initial 5 | . . 5 1 . . . . Average 5 | . 3 5 6 . . 7 4 Influence Increases 191 | . 15 . 30 . 41 45 60 Destroy 0b10 Robot/C 20 | . . . . . 20 . . Allied During Kill 6 | . . . . . 6 . . Partial Spotted 15 | . 15 . . . . . . Lose Combat Pursuer 150 | . . . 30 . 15 45 60 Influence Decreases 191 | . . 10 25 10 41 45 60 Entered New Map 24 | . . 10 4 10 . . . Time Decay 124 | . . . 21 . 20 45 38 Lost Part 22 | . . . . . . . 22 Lost Ally 21 | . . . . . 21 . . Squads Dispatched 3 | . 1 . . . . . 2 Investigation 2 | . 1 . . . . . 1 Extermination . | . . . . . . . . Reinforcement 1 | . . . . . . . 1 Assault . | . . . . . . . . Garrison . | . . . . . . . . Intercept . | . . . . . . . . Searches Triggered . | . . . . . . . . Construction Impeded . | . . . . . . . . Haulers Reinforced . | . . . . . . . . Active Scanning Responses . | . . . . . . . . Cargo Convoy Interrupts . | . . . . . . . . Stealth | -11 -10 -9 -9 -7 -6 -6 -6 --------- Run | Yrd Mat Mat Min Zio Pro Fac Ext Distress Signals 4 | . . 1 . . . . 3 Communications Jammed . | . . . . . . . . Distress Signals . | . . . . . . . . Times Spotted 29 | . 1 3 4 . 4 3 14 Peak Tracking Total 11 | . 1 4 4 . 3 3 11 Tactical Retreats 6 | . . . 1 . 1 1 3 Traps | -11 -10 -9 -9 -7 -6 -6 -6 ------- Run | Yrd Mat Mat Min Zio Pro Fac Ext Traps Triggered . | . . . . . . . . Indirectly . | . . . . . . . . Trap Hack Attempts . | . . . . . . . . Triggered . | . . . . . . . . Disarmed . | . . . . . . . . Reprogrammed . | . . . . . . . . Reused . | . . . . . . . . Traps Extracted . | . . . . . . . . Installed . | . . . . . . . . Triggered . | . . . . . . . . Machines | -11 -10 -9 -9 -7 -6 -6 -6 ---------- Run | Yrd Mat Mat Min Zio Pro Fac Ext Machines Disabled . | . . . . . . . . Max in Single Turn . | . . . . . . . . Machines Repaired . | . . . . . . . . Machines Dismantled . | . . . . . . . . Machines Sabotaged . | . . . . . . . . Overloaded Fab Kills . | . . . . . . . . Hacking | -11 -10 -9 -9 -7 -6 -6 -6 --------- Run | Yrd Mat Mat Min Zio Pro Fac Ext Machines Accessed 2 | . 1 . . . . . 1 Terminals 2 | . 1 . . . . . 1 Fabricators . | . . . . . . . . Repair Stations . | . . . . . . . . Recycling Units . | . . . . . . . . Scanalyzers . | . . . . . . . . Garrison Access . | . . . . . . . . Total Hacks 5 | . 3 . . . . . 2 Successful . | . . . . . . . . Failed 5 | . 3 . . . . . 2 Catastrophic . | . . . . . . . . Database Lockouts . | . . . . . . . . Manual 4 | . 3 . . 1 . . . Terminals 5 | . 3 . . . . . 2 Fabricators . | . . . . . . . . Repair Stations . | . . . . . . . . Recycling Units . | . . . . . . . . Scanalyzers . | . . . . . . . . Garrison Access . | . . . . . . . . Terminal Hacks . | . . . . . . . . Fabricator Hacks . | . . . . . . . . Repair Station Hacks . | . . . . . . . . Recycling Unit Hacks . | . . . . . . . . Scanalyzer . | . . . . . . . . Garrison Access Hacks . | . . . . . . . . Unauthorized Hacks . | . . . . . . . . Terminals . | . . . . . . . . Fabricators . | . . . . . . . . Repair Stations . | . . . . . . . . Recycling Units . | . . . . . . . . Scanalyzers . | . . . . . . . . Garrison Access . | . . . . . . . . Data Cores Recovered . | . . . . . . . . Used . | . . . . . . . . Hacking Detections 2 | . 1 . . . . . 1 Full Trace Events 2 | . 1 . . . . . 1 Feedback Events . | . . . . . . . . Feedback Blocked . | . . . . . . . . Robot Schematics Acquired . | . . . . . . . . Robots Built . | . . . . . . . . Authchips . | . . . . . . . . Time . | . . . . . . . . Total Robot Build Rating . | . . . . . . . . Part Schematics Acquired . | . . . . . . . . Parts Built . | . . . . . . . . Authchips . | . . . . . . . . Time . | . . . . . . . . Total Part Build Rating . | . . . . . . . . Part Studies Acquired . | . . . . . . . . Parts Repaired . | . . . . . . . . Time . | . . . . . . . . Parts Recycled . | . . . . . . . . Recycled Matter . | . . . . . . . . Retrieved Matter . | . . . . . . . . Retrieved Components . | . . . . . . . . Parts Scanalyzed . | . . . . . . . . Part Schematics Acquired . | . . . . . . . . Parts Damaged . | . . . . . . . . Bothacking | -11 -10 -9 -9 -7 -6 -6 -6 ------------ Run | Yrd Mat Mat Min Zio Pro Fac Ext Used RIF Installer . | . . . . . . . . Robots Hacked . | . . . . . . . . Non-combat . | . . . . . . . . Combat . | . . . . . . . . Robot Hacks Applied . | . . . . . . . . Relay Couplers Released . | . . . . . . . . Fabnet Peak Effective % . | . . . . . . . . Robots Rewired . | . . . . . . . . Allies Hacked . | . . . . . . . . Hacks Repelled . | . . . . . . . . Allies | -11 -10 -9 -9 -7 -6 -6 -6 -------- Run | Yrd Mat Mat Min Zio Pro Fac Ext Total Allies 4 | . . . . 4 . . . Largest Group 4 | . . . . 4 4 . . Highest-Rated Group 153 | . . . . 153 153 . . Highest-Rated Ally 41 | . . . . 41 41 . . Total Orders . | . . . . . . . . Ally Attacks 8 | . . . . . 8 . . Total Damage 179 | . . . . . 179 . . Kills 1 | . . . . . 1 . . Allies Corrupted . | . . . . . . . . Allies Melted . | . . . . . . . . Intel | -11 -10 -9 -9 -7 -6 -6 -6 ------- Run | Yrd Mat Mat Min Zio Pro Fac Ext Active Infowar (turns) 1400 | . . . . 417 262 296 425 Decoding 1400 | . . . . 417 262 296 425 Cloaking 15 | . . . . . . 15 . Robot Analysis Total . | . . . . . . . . Derelict Logs Recovered 3 | . . . 1 2 . . . Drone Launches 1 | . . . . 1 . . . Drone Recoveries . | . . . . . . . . Decoded 0b10 Intel 15 | . . . . . . 5 10 Traps 9 | . . . . . . 3 6 Emergency Access 3 | . . . . . . . 3 Garrisons 1 | . . . . . . 1 . Exits 2 | . . . . . . 1 1 Exploration | -11 -10 -9 -9 -7 -6 -6 -6 ------------- Run | Yrd Mat Mat Min Zio Pro Fac Ext Turns Passed 1712 | 25 58 15 123 508 262 296 425 Spaces Moved 2347 | 49 115 29 199 853 512 240 350 Core 2164 | 49 115 29 199 853 512 141 266 Treads . | . . . . . . . . Legs . | . . . . . . . . Wheels . | . . . . . . . . Hover 183 | . . . . . . 99 84 Flight . | . . . . . . . . Fastest Speed 48 | 50 50 50 50 50 50 48 48 Average Speed 49 | 50 50 50 50 50 50 49 49 Slowest Speed 60 | 50 50 50 50 50 50 60 50 Overloaded Moves . | . . . . . . . . Propulsion Burnouts . | . . . . . . . . Robots Hopped . | . . . . . . . . Potential Cave-ins . | . . . . . . . . Cave-ins Triggered . | . . . . . . . . Exploration Rate (%) 35 | 3 26 6 45 74 74 9 44 Regions Visited 7 Branch Regions 4 Pre-discovered Areas 1 | . . . 1 . . . . Known Exits Taken 1 | . . . . . . 1 . Unknown Exits Taken 6 | 1 1 1 1 1 1 . . Scrap Searched 5 | . . . . 2 3 . . Spaces Dug . | . . . . . . . . Terrain Destroyed . | . . . . . . . . Melee . | . . . . . . . . Projectile . | . . . . . . . . AOE . | . . . . . . . . Terrain Rammed . | . . . . . . . . Walls Destroyed . | . . . . . . . . Machines Disabled . | . . . . . . . . Actions | -11 -10 -9 -9 -7 -6 -6 -6 --------- Run | Yrd Mat Mat Min Zio Pro Fac Ext Total 2877 | 48 114 28 221 933 517 414 602 Wait 517 | . . . 23 77 . 166 251 Move 2340 | 48 114 28 198 852 511 239 350 Hop . | . . . . . . . . Pick Up 10 | . . . . 2 4 3 1 Fast Attach 4 | . . . . . . 4 . Attach 4 | . . . . 2 . 2 . Detach . | . . . . . . . . Swap . | . . . . . . . . Drop 1 | . . . . . 1 . . Fire . | . . . . . . . . Melee . | . . . . . . . . Ram . | . . . . . . . . Kick . | . . . . . . . . Crush . | . . . . . . . . Escape Stasis . | . . . . . . . . Rewire 1 | . . . . . 1 . . Trap . | . . . . . . . . Miscellaneous . | . . . . . . . . Route ------- -11/Scrapyard -10/Materials -9/Materials -9/Mines -7/Zion -6/Proximity Caves -6/Factory (discovered 2 exits: Fac / *Ext) -6/Extension (discovered 1 exit: Fac) History --------- Turn | Location | Event 4 | -11/Scrapyard | Discovered new exit (range 14) 26 | -11/Scrapyard | Entered Materials 81 | -10/Materials | Discovered new exit (range 4) 84 | -10/Materials | Entered another Materials area 84 | -9/Materials | Evolved 2 slots: Propulsion x2 91 | -9/Materials | Discovered new exit (range 16) 99 | -9/Materials | Entered Mines 104 | -9/Mines | Learned location of Zion (-7) 218 | -9/Mines | A Derelict revealed a hidden shortcut to a safe place 222 | -9/Mines | Entered Zion 312 | -7/Zion | Build established: Mutant 343 | -7/Zion | Learned Factory emergency access door positions 387 | -7/Zion | Learned location of 1 exit from Factory 417 | -7/Zion | Met Imprinter 427 | -7/Zion | Imprinted 429 | -7/Zion | Declared Zion's savior 574 | -7/Zion | Given the Hacking Drone Bay 576 | -7/Zion | Found Prototype Device 577 | -7/Zion | Identified Hacking Drone Bay 634 | -7/Zion | Discovered new exit (range 7) 730 | -7/Zion | Entered Proximity Caves 730 | -6/Proximity Caves | Accompanied by 5 allies 735 | -6/Proximity Caves | Spotted B-75 Beast 986 | -6/Proximity Caves | Discovered new exit (range 15) 992 | -6/Proximity Caves | Entered Factory 992 | -6/Factory | Evolved 6 slots: Power x1, Utility x4, Weapon x1 993 | -6/Factory | Identified exit to Factory 1204 | -6/Factory | Identified exit to Extension 1288 | -6/Factory | Entered Extension 1696 | -6/Extension | Spotted B-75 Beast 1700 | -6/Extension | Spotted B-75 Beast 1708 | -6/Extension | Core integrity fell below 50% 1713 | -6/Extension | Core integrity fell below 20% 1713 | -6/Extension | Destroyed by Y-54 Guardian with Flak Gun Last Messages --------------- 01704_ Slug penetrates Wall. 01704_ Slug penetrates R-10 Processor. 01704_ Airjet destroyed. 01704_ Cloaking Device destroyed. 01704_ Hacking Drone Bay destroyed. 01704_ Knocked back. 01707_ Penetrated by Slug. 01707_ U-05 Engineer destroyed. 01708_ Acquired 2 matter. 01708_ R-10 Processor collects Terrain Scan Processor. 01709_ Connecting with Door Terminal... 01709_ ALERT: Suspicious activity at Terminal E001. Dispatching Investigation squad. 01709_ Door Terminal disabled. 01709_ ALERT: Hostiles spotted, dispatching reinforcements to Terminal E004. 01710_ Penetrated by Slug. 01712_ Jamming Amplifier destroyed. 01712_ Critical hit (Blast). Map ----- +----------------------------------------------------+ | ?????????????????????????????????????????????????? | | ?????????????????????????????????????????????????? | | ?????????????????????????????????????????????????? | | ?????????????????????????????????????????????????? | | ?????????????????????????????????????????????????? | | ???????????? ????????????????????????????????????? | | ???????????? ????????????????????????????????????? | | ???????????? ????????????????????????????????????? | | ???????????# #???????????????????????????????????? | | ???????????# #???????????????????????????????????? | | ???????????# #???????????????????????????????????? | | ???????????# #???????? ?????????????????????????? | | ???????????# #??#####?# #????????????????????????? | | ?????????### ### ## ### ##???????????????????????? | | ?????????#"" "" Y "" ""#??????????????????????? | | ?????????# " " Y " " #??????????????????????? | | ?????????# #??????????????????????? | | ?????????# #??????????????????????? | | ########## % h #######????????????????? | | |% % h ????????????????? | | =! % ?????????????????? | | w ??????????????????? | | BB ! ??????????????????? | | % BB !%* u ??????????????????? | | ########## == BB ####???????????????????? | | ?????????# BB @#??????????????????????? | | ?????????# #??????????????????????? | | ?????????# %% ##?????????????????????? | | ?????????# ;#?????????????????????? | | ?????????###### #"""########?????????????????????? | | ??????????????###?